[Event "Israeli U18-Team-ch 2024"]
[Site "Rishon LeZion"]
[Date "2024.08.01"]
[Round "2.12"]
[White "Golan, Ori"]
[Black "Gurevich, Neria"]
[Result "0-1"]
[ECO "B45"]
[WhiteElo "1911"]
[BlackElo "1997"]
[Annotator "RC"]
[PlyCount "192"]
[EventDate "2024.08.01"]
[EventType "team-tourn"]
[EventCountry "ISR"]
[SourceTitle "playchess.com"]
[Source "ChessBase"]
[SourceQuality "1"]
[TimeControl "3000+10"]

1. e4 {[%emt 0:00:02]} c5 {[%emt 0:00:05]} 2. Nf3 {[%emt 0:00:08]} e6 {[%emt 0:00:06]} 3. d4 {[%emt 0:00:06]} cxd4 {[%emt 0:00:12]} 4. Nxd4 {[%emt 0:00:02]} Nf6 {[%emt 0:00:19]} 5. Nc3 {[%emt 0:00:08]} Nc6 {[%emt 0:00:06]} 6. Ndb5 {[%emt 0:00:22]} Bb4 {[%emt 0:00:18]} 7. Bf4 {[%emt 0:00:33]} e5 {[%emt 0:00:50]} 8. Bg5 {[%emt 0:01:38]} O-O {[%emt 0:00:35]} 9. a3 {[%emt 0:02:50]} Be7 {[%emt 0:00:58]} 10. Bxf6 {[%emt 0:02:33]} Bxf6 {[%emt 0:00:13]} 11. Nd5 {[%emt 0:00:51]} Be7 {[%emt 0:02:31]} 12. Bc4 {[%emt 0:04:32]} a6 {[%emt 0:01:53]} 13. Nxe7+ {[%emt 0:02:02]} Qxe7 {[%emt 0:02:02]} 14. Nc7 {[%emt 0:02:43]} Rb8 {[%emt 0:00:12]} 15. Nd5 {[%emt 0:00:15]} Qg5 {[%emt 0:00:17]} 16. O-O {[%emt 0:02:51]} d6 {[%emt 0:01:13]} 17. c3 {[%emt 0:03:40]} Be6 {[%emt 0:05:48]} 18. Qe2 {[%emt 0:03:37]} Kh8 {[%emt 0:03:24]} 19. Ne3 {[%emt 0:03:31]} Ne7 {[%emt 0:00:34]} 20. Rad1 {[%emt 0:02:18]} Nc8 {[%emt 0:10:06]} 21. Kh1 {[%emt 0:05:27]} b5 {[%emt 0:00:53]} 22. Bd5 {[%emt 0:01:07]} Rd8 {[%emt 0:01:32]} 23. c4 {[%emt 0:03:09]} Bxd5 {[%emt 0:01:02]} 24. Rxd5 {[%emt 0:02:45]} Ne7 {[%emt 0:01:43]} 25. Rd3 {[%emt 0:02:56]} f5 {[%emt 0:02:58]} 26. exf5 {[%emt 0:02:01]} bxc4 {[%emt 0:00:29]} 27. Nxc4 {[%emt 0:01:13]} Nxf5 {[%emt 0:00:10]} 28. Rfd1 {[%emt 0:01:15]} Nd4 {[%emt 0:00:16]} 29. Qe3 {[%emt 0:00:12]} Qg6 {[%emt 0:00:38]} 30. f4 {[%emt 0:00:10]} Nf5 {[%emt 0:00:33]} 31. Qf2 {[%emt 0:00:11]} e4 {[%emt 0:00:32]} 32. Rd5 {[%emt 0:00:09]} Rd7 {[%emt 0:02:37]} 33. Ne5 {[%emt 0:00:10]} dxe5 {[%emt 0:01:37]} 34. Rxd7 {[%emt 0:00:01]} h6 {[%emt 0:01:00]} 35. fxe5 {[%emt 0:00:12]} e3 {[%emt 0:01:09]} 36. Qe2 {[%emt 0:00:07]} Rc8 {[%emt 0:01:13]} 37. Rd8+ {[%emt 0:00:08]} Rxd8 {[%emt 0:00:06]} 38. Rxd8+ {[%emt 0:00:00]} Kh7 {[%emt 0:00:11]} 39. g4 {[%emt 0:00:30]} Nh4 {[%emt 0:00:10]} 40. Qd3 {[%emt 0:00:12]} e2 {[%emt 0:01:47]} 41. Qxe2 {[%emt 0:00:10]} Qc6+ {[%emt 0:00:02]} 42. Kg1 {[%emt 0:00:11]} Qb6+ {[%emt 0:00:03]} 43. Kf1 {[%emt 0:00:10]} Qxd8 {[%emt 0:00:01]} 44. e6 {[%emt 0:00:11]} Ng6 {[%emt 0:00:17]} 45. Qe4 {[%emt 0:00:09]} Qf6+ {[%emt 0:00:12]} 46. Kg2 {[%emt 0:00:09]} Qxb2+ {[%emt 0:00:10]} 47. Kg1 {[%emt 0:00:10]} Qb6+ {[%emt 0:00:16]} 48. Kf1 {[%emt 0:00:11]} Qb5+ {[%emt 0:00:44]} 49. Kg2 {[%emt 0:00:07]} Qd5 {[%emt 0:00:18]} 50. Qxd5 {[%emt 0:00:12]} Nf4+ {[%emt 0:00:01]} 51. Kf3 {[%emt 0:00:03]} Nxd5 {[%emt 0:00:02]} 52. Ke4 {[%emt 0:00:01]} Ne7 {[%emt 0:00:01]} 53. Ke5 {[%emt 0:00:07]} Kg6 {[%emt 0:00:02]} 54. h4 {[%emt 0:00:20]} h5 {[%emt 0:00:51]} 55. Kd6 {[%emt 0:00:09]} Nc8+ {[%emt 0:03:06]} 56. Kc7 {[%emt 0:00:12]} Ne7 {[%emt 0:00:33]} 57. Kd6 {[%emt 0:00:14]} Nc8+ {[%emt 0:00:24]} 58. Kc7 {[%emt 0:00:04]} Ne7 {[%emt 0:00:03]} 59. Kd6 {[%emt 0:00:12]} hxg4 {[%emt 0:00:16]} 60. Kxe7 {[%emt 0:00:02]} g3 {[%emt 0:00:02]} 61. Kf8 {[%emt 0:00:27]} g2 {[%emt 0:00:07]} 62. e7 {[%emt 0:00:01]} g1=Q {[%emt 0:00:02]} 63. e8=Q+ {[%emt 0:00:01]} Kh6 {[%emt 0:00:09]} 64. Qe6+ {[%emt 0:00:25]} g6 {[%emt 0:00:13]} 65. Qf6 {[%emt 0:00:13]} Kh5 {[%emt 0:00:26]} 66. Kg7 {[%emt 0:00:11]} a5 {[%emt 0:00:11]} 67. Kh7 {[%emt 0:00:21]} a4 {[%emt 0:00:08]} 68. Qe7 {[%emt 0:00:00]} Qg4 {[%emt 0:00:11]} 69. Qe5+ {[%emt 0:00:09]} Kxh4 {[%emt 0:00:14]} 70. Qh2+ {[%emt 0:00:01]} Kg5 {[%emt 0:00:02]} 71. Qe5+ {[%emt 0:00:15]} Qf5 {[%emt 0:00:01]} 72. Qg3+ {[%emt 0:00:09]} Kf6 {[%emt 0:00:02]} 73. Qc3+ {[%emt 0:00:13]} Kf7 {[%emt 0:00:22]} 74. Qc4+ {[%emt 0:00:09]} Ke7 {[%emt 0:00:05]} 75. Qb4+ {[%emt 0:00:12]} Ke6 {[%emt 0:00:04]} 76. Qc4+ {[%emt 0:00:08]} Ke5 {[%emt 0:00:25]} 77. Qxa4 {[%emt 0:00:12]} g5+ {[%emt 0:00:04]} 78. Kh6 {[%emt 0:00:08]} g4 {[%emt 0:00:05]} 79. Qb5+ {[%emt 0:00:09]} Kf4 {[%emt 0:00:07]} 80. Qf1+ {[%emt 0:00:10]} Ke5 {[%emt 0:00:07]} 81. Qb5+ {[%emt 0:00:05]} Kf6 {[%emt 0:00:18]} 82. Qb2+ {[%emt 0:00:10]} Ke7 {[%emt 0:00:08]} 83. Qb7+ {[%emt 0:00:13]} Kd6 {[%emt 0:00:10]} 84. Qb6+ {[%emt 0:00:07]} Kd5 {[%emt 0:00:10]} 85. Qb5+ {[%emt 0:00:13]} Ke4 {[%emt 0:00:09]} 86. Qb1+ {[%emt 0:00:01]} Kf4 {[%emt 0:00:18]} 87. Qf1+ {[%emt 0:00:03]} Ke5 {[%emt 0:00:01]} 88. Qb5+ {[%emt 0:00:07]} Kf6 {[%emt 0:00:08]} 89. Qb2+ {[%emt 0:00:14]} Qe5 {[%emt 0:00:09]} 90. Qf2+ {[%emt 0:00:04]} Ke6 {[%emt 0:00:07]} 91. Qa2+ {[%emt 0:00:07]} Kf5 {[%emt 0:00:21]} 92. Qb1+ {[%emt 0:00:27]} Qe4 {[%emt 0:00:06]} 93. Qf1+ {[%emt 0:00:18]} Qf4+ {[%emt 0:00:01]} 94. Qxf4+ {[%emt 0:00:08]} Kxf4 {[%emt 0:00:01]} 95. a4 {[%emt 0:00:01]} g3 {[%emt 0:00:01]} 96. a5 {[%emt 0:00:02]} g2 {[%emt 0:00:01]} 0-1

[Event "Israeli U18-Team-ch 2024"]
[Site "Rishon LeZion"]
[Date "2024.08.01"]
[Round "2.15"]
[White "Versano, Meitar"]
[Black "Afek, Itay"]
[Result "1/2-1/2"]
[ECO "B12"]
[WhiteElo "1639"]
[BlackElo "1913"]
[Annotator "RC"]
[PlyCount "94"]
[EventDate "2024.08.01"]
[EventType "team-tourn"]
[EventCountry "ISR"]
[SourceTitle "playchess.com"]
[Source "ChessBase"]
[SourceQuality "1"]
[TimeControl "3000+10"]

1. e4 {[%emt 0:00:05]} c6 {[%emt 0:00:04]} 2. d4 {[%emt 0:00:04]} d5 {[%emt 0:00:04]} 3. e5 {[%emt 0:00:04]} c5 {[%emt 0:00:07]} 4. dxc5 {[%emt 0:00:03]} Nc6 {[%emt 0:00:41]} 5. f4 {[%emt 0:00:08]} Nh6 {[%emt 0:00:18]} 6. c3 {[%emt 0:00:23]} e6 {[%emt 0:01:28]} 7. Be3 {[%emt 0:00:23]} g5 {[%emt 0:01:39]} 8. Nf3 {[%emt 0:08:22]} Nf5 {[%emt 0:06:47]} 9. Bd4 {[%emt 0:01:06]} gxf4 {[%emt 0:00:49]} 10. Bd3 {[%emt 0:01:10]} Ncxd4 {[%emt 0:02:29]} 11. cxd4 {[%emt 0:00:21]} Ne3 {[%emt 0:00:48]} 12. Qd2 {[%emt 0:01:34]} Rg8 {[%emt 0:00:33]} 13. Rg1 {[%emt 0:01:34]} Be7 {[%emt 0:05:17]} 14. g3 {[%emt 0:05:32]} Bd7 {[%emt 0:05:55]} 15. gxf4 {[%emt 0:01:57]} Rxg1+ {[%emt 0:03:09]} 16. Nxg1 {[%emt 0:00:41]} Bh4+ {[%emt 0:01:34]} 17. Ke2 {[%emt 0:00:06]} Ng4 {[%emt 0:04:54]} 18. Nf3 {[%emt 0:00:56]} Nf2 {[%emt 0:02:47]} 19. Nc3 {[%emt 0:03:02]} Qe7 {[%emt 0:05:03]} 20. Nxh4 {[%emt 0:07:16]} Qxh4 {[%emt 0:00:09]} 21. Qe1 {[%emt 0:00:18]} Qg4+ {[%emt 0:01:31]} 22. Kxf2 {[%emt 0:00:27]} Qxf4+ {[%emt 0:00:39]} 23. Ke2 {[%emt 0:01:49]} Qxd4 {[%emt 0:07:15]} 24. Qg3 {[%emt 0:00:57]} O-O-O {[%emt 0:00:00]} 25. Rf1 {[%emt 0:04:51]} Qb4 {[%emt 0:00:00]} 26. Nd1 {[%emt 0:00:47]} Qxc5 {[%emt 0:00:30]} 27. Rxf7 {[%emt 0:00:52]} Bb5 {[%emt 0:00:00]} 28. Bxb5 {[%emt 0:00:21]} Qxb5+ {[%emt 0:00:00]} 29. Qd3 {[%emt 0:00:01]} Qb6 {[%emt 0:00:00]} 30. Qb3 {[%emt 0:02:24]} Qa6+ {[%emt 0:00:00]} 31. Kd2 {[%emt 0:00:57]} Rg8 {[%emt 0:00:00]} 32. Qc3+ {[%emt 0:01:01]} Kb8 {[%emt 0:00:00]} 33. Qc7+ {[%emt 0:00:12]} Ka8 {[%emt 0:00:00]} 34. Rg7 {[%emt 0:00:22]} Rf8 {[%emt 0:00:00]} 35. Qd6 {[%emt 0:01:57]} Qa5+ {[%emt 0:00:00]} 36. Kc1 {[%emt 0:00:49]} Rc8+ {[%emt 0:00:00]} 37. Nc3 {[%emt 0:00:44]} Rxc3+ {[%emt 0:00:00]} 38. bxc3 {[%emt 0:00:14]} Qxc3+ {[%emt 0:00:00]} 39. Kb1 {[%emt 0:00:23]} Qd3+ {[%emt 0:00:00]} 40. Kb2 {[%emt 0:00:19]} Qd2+ {[%emt 0:00:00]} 41. Kb3 {[%emt 0:00:17]} Qd3+ {[%emt 0:00:00]} 42. Ka4 {[%emt 0:00:34]} Qc2+ {[%emt 0:01:01]} 43. Ka3 {[%emt 0:00:59]} Qc3+ {[%emt 0:00:04]} 44. Ka4 {[%emt 0:00:02]} Qc2+ {[%emt 0:00:03]} 45. Kb4 {[%emt 0:00:58]} Qc4+ {[%emt 0:00:27]} 46. Ka3 {[%emt 0:00:12]} Qc3+ {[%emt 0:00:04]} 47. Ka4 {[%emt 0:00:03]} Qc2+ {[%emt 0:00:14]} 1/2-1/2

[Event "Israeli U18-Team-ch 2024"]
[Site "Rishon LeZion"]
[Date "2024.08.01"]
[Round "2.16"]
[White "Pearl, Oliver"]
[Black "Ghelerter, Ofir"]
[Result "1-0"]
[ECO "D02"]
[WhiteElo "1795"]
[BlackElo "1667"]
[Annotator "NA RC"]
[PlyCount "51"]
[EventDate "2024.08.01"]
[EventType "team-tourn"]
[EventCountry "ISR"]
[SourceTitle "playchess.com"]
[Source "ChessBase"]
[SourceQuality "1"]
[TimeControl "3000+10"]

1. Nf3 {[%emt 0:00:07]} d5 {[%emt 0:00:05]} 2. g3 {[%emt 0:00:04]} Nc6 {[%emt 0:00:05]} 3. d4 {[%emt 0:00:04]} Bf5 {[%emt 0:00:10]} 4. Bg2 {[%emt 0:00:07]} Nf6 {[%emt 0:00:21]} 5. O-O {[%emt 0:00:10]} e6 {[%emt 0:00:07]} 6. c4 {[%emt 0:02:36]} Bd6 {[%emt 0:02:58]} 7. Nc3 {[%emt 0:01:09]} O-O {[%emt 0:01:02]} 8. Bg5 {[%emt 0:03:24]} Be7 {[%emt 0:02:24]} 9. Ne5 {[%emt 0:03:45]} h6 {[%emt 0:03:22]} 10. Nxc6 {[%emt 0:08:27]} bxc6 {[%emt 0:00:06]} 11. Bxf6 {[%emt 0:00:15]} Bxf6 {[%emt 0:00:12]} 12. e3 {[%emt 0:00:24]} Rb8 {[%emt 0:02:12]} 13. cxd5 {[%emt 0:01:50]} cxd5 {[%emt 0:03:30]} 14. Na4 {[%emt 0:00:53]} Qd7 {[%emt 0:09:40]} 15. b3 {[%emt 0:03:48]} Rfd8 {[%emt 0:02:34]} 16. Rc1 {[%emt 0:01:42]} Be7 {[%emt 0:04:22]} 17. Nc5 {[%emt 0:03:17]} Qb5 {[%emt 0:00:23]} 18. f4 {[%emt 0:01:56]} Qa5 {[%emt 0:07:20]} 19. Rf2 {[%emt 0:00:30]} Rb5 {[%emt 0:00:51]} 20. Qd2 {[%emt 0:07:20]} Qb6 {[%emt 0:03:51]} 21. Na4 {[%emt 0:01:01]} Qb7 {[%emt 0:00:53]} 22. Qc3 {[%emt 0:02:01]} Rc8 {[%emt 0:03:40]} 23. Bf1 {[%emt 0:01:25]} Bb4 {[%emt 0:01:25]} 24. Qc6 {[%emt 0:01:52]} Ba3 {[%emt 0:01:24]} 25. Bxb5 {[%emt 0:02:38]} Qxc6 {[%emt 0:00:02]} 26. Rxc6 {[%emt 0:00:09]} 1-0

[Event "Israeli U18-Team-ch 2024"]
[Site "Rishon LeZion"]
[Date "2024.08.01"]
[Round "3.1"]
[White "Vagman, Roy"]
[Black "Ribstein, Orel"]
[Result "1-0"]
[ECO "B51"]
[WhiteElo "2308"]
[BlackElo "2066"]
[Annotator "RC"]
[PlyCount "61"]
[EventDate "2024.08.01"]
[EventType "team-tourn"]
[EventCountry "ISR"]
[SourceTitle "playchess.com"]
[Source "ChessBase"]
[SourceQuality "1"]
[TimeControl "3000+10"]

1. e4 {[%emt 0:00:09]} c5 {[%emt 0:00:11]} 2. Nf3 {[%emt 0:00:12]} d6 {[%emt 0:00:00]} 3. Bb5+ {[%emt 0:00:29]} Nd7 {[%emt 0:00:04]} 4. Ba4 {[%emt 0:00:11]} Ngf6 {[%emt 0:01:07]} 5. O-O {[%emt 0:00:10]} a6 {[%emt 0:00:15]} 6. c4 {[%emt 0:05:28]} e6 {[%emt 0:00:48]} 7. d3 {[%emt 0:00:07]} Be7 {[%emt 0:00:24]} 8. Nc3 {[%emt 0:00:07]} O-O {[%emt 0:00:05]} 9. Qe2 {[%emt 0:00:14]} b5 {[%emt 0:00:56]} 10. cxb5 {[%emt 0:01:16]} Nb6 {[%emt 0:00:01]} 11. Bc2 {[%emt 0:04:53]} axb5 {[%emt 0:00:01]} 12. Nxb5 {[%emt 0:00:12]} Ba6 {[%emt 0:00:01]} 13. Nc3 {[%emt 0:01:31]} d5 {[%emt 0:00:41]} 14. e5 {[%emt 0:01:53]} Nfd7 {[%emt 0:00:07]} 15. Re1 {[%emt 0:01:28]} Nb8 {[%emt 0:00:56]} 16. Bf4 {[%emt 0:03:43]} Nc6 {[%emt 0:01:56]} 17. a3 {[%emt 0:02:48]} Qc7 {[%emt 0:10:12]} 18. Rac1 {[%emt 0:01:38]} Rfb8 {[%emt 0:00:10]} 19. Bb1 {[%emt 0:02:32]} d4 {[%emt 0:07:46]} 20. Ne4 {[%emt 0:00:22]} Na4 {[%emt 0:00:47]} 21. Rc2 {[%emt 0:05:52]} Rb3 {[%emt 0:01:43]} 22. Rd2 {[%emt 0:00:32]} Qa5 {[%emt 0:04:56]} 23. Ba2 {[%emt 0:02:37]} Rb6 {[%emt 0:06:35]} 24. Nfg5 {[%emt 0:03:42]} Nd8 {[%emt 0:08:37]} 25. Nxh7 {[%emt 0:05:28]} Kxh7 {[%emt 0:01:15]} 26. Qh5+ {[%emt 0:00:02]} Kg8 {[%emt 0:00:11]} 27. Nf6+ {[%emt 0:00:06]} Bxf6 {[%emt 0:03:44]} 28. exf6 {[%emt 0:00:01]} gxf6 {[%emt 0:00:30]} 29. Bh6 {[%emt 0:00:10]} Bxd3 {[%emt 0:00:06]} 30. Qh4 {[%emt 0:01:07]} Kh7 {[%emt 0:00:53]} 31. Qxf6 {[%emt 0:00:15]} 1-0

[Event "Israeli U18-Team-ch 2024"]
[Site "Rishon LeZion"]
[Date "2024.08.01"]
[Round "3.2"]
[White "Leib, Yoni"]
[Black "Sokolovsky, Yahli"]
[Result "0-1"]
[ECO "A06"]
[WhiteElo "1977"]
[BlackElo "2492"]
[Annotator "TA"]
[PlyCount "84"]
[EventDate "2024.08.01"]
[EventType "team-tourn"]
[EventCountry "ISR"]
[SourceTitle "playchess.com"]
[Source "ChessBase"]
[SourceQuality "1"]
[TimeControl "3000+10"]

{[%evp 10,84,0,0,0,0,0,0,0,0,4,0,21,0,0,-8,-4,-2,-9,-6,0,0,0,-19,-21,-50,-48,-53,-50,-47,-45,-45,-43,-46,-42,-46,-39,-72,-82,-87,-82,-93,-66,-85,-86,-97,-97,-85,-78,-87,-59,-176,-166,-166,-168,-166,-158,-344,-354,-357,-351,-351,-261,-375,-333,-350,-339,-446,-223,-992,-973,-1061,-856,-2033,-1715,-1279,-1241]} 1. Nf3 {[%emt 0:00:06]} d5 {[%emt 0:00:20]} 2. e3 {[%emt 0:00:22]} Nf6 {[%emt 0:00:11]} 3. b3 {[%emt 0:00:10]} Bf5 {[%emt 0:01:19]} 4. Bb2 {[%emt 0:00:21]} e6 {[%emt 0:00:26]} 5. Be2 {[%emt 0:01:32]} h6 {[%emt 0:00:13]} 6. O-O {[%emt 0:02:18]} Be7 {[%emt 0:00:18]} 7. d4 {[%emt 0:01:14]} O-O {[%emt 0:00:53]} 8. c4 {[%emt 0:01:41]} dxc4 {[%emt 0:03:20] The position is equal.} 9. Bxc4 {[%emt 0:00:46]} c5 {[%emt 0:03:26]} 10. Nc3 {[%emt 0:43:20]} a6 {[%emt 0:03:31]} 11. dxc5 {[%emt 0:00:00]} Bxc5 {[%emt 0:00:37]} 12. Qxd8 {[%emt 0:00:00]} Rxd8 {[%emt 0:00:04]} 13. Rfd1 {[%emt 0:00:00]} Nc6 {[%emt 0:01:17]} 14. Be2 {[%emt 0:00:00]} Ne4 {[%emt 0:11:12]} 15. Nxe4 {[%emt 0:00:00]} Bxe4 {[%emt 0:00:06]} 16. Ne5 {[%emt 0:00:00]} Nb4 {[%emt 0:00:41]} 17. Rac1 {[%emt 0:00:00]} Rxd1+ {[%emt 0:06:54]} 18. Bxd1 {[%emt 0:00:00]} Bd6 {[%emt 0:00:08][%cal Od6e5] [#] Threatens to win with ...Bxe5!} 19. Ra1 {[%emt 0:00:00]} Rd8 {[%emt 0:02:45]} 20. a3 {[%emt 0:00:00]} Nc2 {[%emt 0:01:36]} 21. Bxc2 {[%emt 0:00:00]} Bxc2 {[%emt 0:00:05]} 22. b4 {[%emt 0:00:00]} f6 {[%emt 0:06:42]} 23. Nf3 {[%emt 0:00:00]} e5 {[%emt 0:00:18] Black is more active.} 24. Rc1 {[%emt 0:00:00]} Ba4 $36 {[%emt 0:02:28][%mdl 2048] Black is on the roll.} 25. h3 {[%emt 0:00:00]} Bb8 {[%emt 0:00:26]} 26. Kf1 {[%emt 0:00:03]} Kf7 {[%emt 0:00:55]} 27. Ke1 {[%emt 0:00:20]} Bc6 {[%emt 0:04:29]} 28. Rd1 {[%emt 0:01:03]} Rc8 {[%emt 0:00:00]} 29. Rc1 {[%emt 0:00:17]} Ke6 {[%emt 0:00:00]} 30. a4 {[%emt 0:00:22]} ({White should try} 30. Nd2 $15) 30... Bd6 $19 {[%emt 0:00:00]} 31. b5 {[%emt 0:00:49]} axb5 {[%emt 0:00:00]} 32. axb5 {[%emt 0:00:03]} Bb4+ {[%emt 0:00:00] This pair of bishops is nice.} 33. Kd1 $2 {[%emt 0:00:02] Now White is beyond hope.} (33. Nd2 $17 Bd7 34. Rxc8 Bxc8 35. f4) 33... Bxf3+ {[%emt 0:00:00]} 34. gxf3 {[%emt 0:00:01] [#]} Rxc1+ {[%emt 0:00:04]} 35. Bxc1 {[%emt 0:00:01][%mdl 4096] Endgame. KB-KB} Kd5 {[%emt 0:00:01]} 36. e4+ {[%emt 0:00:23]} (36. Kc2 $142) 36... Kc4 {[%emt 0:00:09]} 37. f4 {[%emt 0:00:04]} Kd3 {[%emt 0:01:07]} (37... Kxb5 38. fxe5 fxe5 39. Bb2 $19) 38. f3 {[%emt 0:00:14]} Bd6 {[%emt 0:00:09]} (38... exf4 $142 {Hoping for ...g5.} 39. Bxf4 Bc3) 39. f5 $2 {[%emt 0:00:31]} (39. fxe5 Bxe5 (39... fxe5 40. Ke1 $17) 40. Ke1) 39... Bb4 {[%emt 0:00:06] Black is clearly winning.} 40. h4 {[%emt 0:00:15]} h5 {[%emt 0:00:01]} 41. f4 {[%emt 0:00:28]} Kxe4 {[%emt 0:00:03]} 42. fxe5 {[%emt 0:00:02]} Kxe5 {[%emt 0:00:01] Weighted Error Value: White=0.50/Black=0.10 (very precise) .  Loses game:     	White=1     	---        Mistake:       	White=3     	Black=1      Inaccurate:     	White=3     	Black=1      OK:         	White=11    	Black=12     Best:        	---       	Black=3} 0-1

[Event "Israeli U18-Team-ch 2024"]
[Site "Rishon LeZion"]
[Date "2024.08.01"]
[Round "3.3"]
[White "Azoulay, Yehonatan"]
[Black "Pelech, Roee"]
[Result "0-1"]
[ECO "B22"]
[WhiteElo "2009"]
[BlackElo "2267"]
[Annotator "RC"]
[PlyCount "80"]
[EventDate "2024.08.01"]
[EventType "team-tourn"]
[EventCountry "ISR"]
[SourceTitle "playchess.com"]
[Source "ChessBase"]
[SourceQuality "1"]
[TimeControl "3000+10"]

1. e4 {[%emt 0:00:02]} c5 {[%emt 0:00:16]} 2. Nf3 {[%emt 0:00:07]} Nc6 {[%emt 0:00:02]} 3. c3 {[%emt 0:00:04]} Nf6 {[%emt 0:00:03]} 4. e5 {[%emt 0:00:03]} Nd5 {[%emt 0:00:03]} 5. d4 {[%emt 0:00:03]} cxd4 {[%emt 0:00:08]} 6. cxd4 {[%emt 0:00:02]} d6 {[%emt 0:00:09]} 7. Bc4 {[%emt 0:00:01]} Nb6 {[%emt 0:00:05]} 8. Bb5 {[%emt 0:00:04]} dxe5 {[%emt 0:00:07]} 9. Nxe5 {[%emt 0:00:03]} Bd7 {[%emt 0:00:04]} 10. Nxd7 {[%emt 0:00:04]} Qxd7 {[%emt 0:00:04]} 11. Nc3 {[%emt 0:00:14]} Rd8 {[%emt 0:00:02]} 12. Be3 {[%emt 0:00:20]} e6 {[%emt 0:00:23]} 13. O-O {[%emt 0:00:13]} Be7 {[%emt 0:00:05]} 14. Qg4 {[%emt 0:01:01]} O-O {[%emt 0:01:45]} 15. Rad1 {[%emt 0:05:00]} f5 {[%emt 0:00:16]} 16. Qg3 {[%emt 0:01:28]} Nd5 {[%emt 0:02:10]} 17. Nxd5 {[%emt 0:01:40]} Qxd5 {[%emt 0:00:02]} 18. Bxc6 {[%emt 0:00:24]} bxc6 {[%emt 0:02:09]} 19. Rc1 {[%emt 0:13:33]} Bf6 {[%emt 0:08:38]} 20. b3 {[%emt 0:00:31]} Bxd4 {[%emt 0:01:23]} 21. Bxd4 {[%emt 0:00:11]} Qxd4 {[%emt 0:00:07]} 22. Rxc6 {[%emt 0:01:13]} e5 {[%emt 0:00:03]} 23. Rc7 {[%emt 0:09:28]} e4 {[%emt 0:00:09]} 24. Qg5 {[%emt 0:01:48]} f4 {[%emt 0:02:35]} 25. Qc5 {[%emt 0:03:44]} Qxc5 {[%emt 0:04:29]} 26. Rxc5 {[%emt 0:00:01]} Rd2 {[%emt 0:00:02]} 27. Ra5 {[%emt 0:01:55]} Rf7 {[%emt 0:00:46]} 28. Re5 {[%emt 0:05:42]} Re2 {[%emt 0:03:04]} 29. a4 {[%emt 0:02:06]} g6 {[%emt 0:02:38]} 30. h4 {[%emt 0:01:11]} Rd7 {[%emt 0:03:42]} 31. Rc1 {[%emt 0:01:07]} Kg7 {[%emt 0:01:09]} 32. Ra5 {[%emt 0:01:39]} Kh6 {[%emt 0:02:27]} 33. b4 {[%emt 0:00:11]} Rdd2 {[%emt 0:01:39]} 34. Rxa7 {[%emt 0:00:20]} Rxf2 {[%emt 0:00:09]} 35. Rcc7 {[%emt 0:00:15]} Rxg2+ {[%emt 0:00:14]} 36. Kh1 {[%emt 0:00:03]} Rh2+ {[%emt 0:00:57]} 37. Kg1 {[%emt 0:00:01]} Kh5 {[%emt 0:00:15]} 38. Rxh7+ {[%emt 0:00:23]} Kg4 {[%emt 0:00:01]} 39. Rhg7 {[%emt 0:00:08]} Rdg2+ {[%emt 0:00:26]} 40. Kf1 {[%emt 0:00:01]} Kf3 {[%emt 0:00:07]} 0-1

[Event "Israeli U18-Team-ch 2024"]
[Site "Rishon LeZion"]
[Date "2024.08.01"]
[Round "3.4"]
[White "Tashkinova, Sofiia"]
[Black "Sternfeld, Tomer"]
[Result "1/2-1/2"]
[ECO "B32"]
[WhiteElo "2127"]
[BlackElo "1928"]
[Annotator "RC"]
[PlyCount "78"]
[EventDate "2024.08.01"]
[EventType "team-tourn"]
[EventCountry "ISR"]
[SourceTitle "playchess.com"]
[Source "ChessBase"]
[SourceQuality "1"]
[TimeControl "3000+10"]

1. e4 {[%emt 0:00:01]} c5 {[%emt 0:00:06]} 2. Nf3 {[%emt 0:00:12]} Nc6 {[%emt 0:00:05]} 3. d4 {[%emt 0:00:10]} cxd4 {[%emt 0:00:06]} 4. Nxd4 {[%emt 0:00:07]} e5 {[%emt 0:00:06]} 5. Nb5 {[%emt 0:00:05]} d6 {[%emt 0:00:11]} 6. c4 {[%emt 0:00:11]} a6 {[%emt 0:00:12]} 7. N5c3 {[%emt 0:00:13]} Nf6 {[%emt 0:00:54]} 8. Na3 {[%emt 0:00:13]} g6 {[%emt 0:05:30]} 9. Nc2 {[%emt 0:01:44]} Bg7 {[%emt 0:00:10]} 10. Bd3 {[%emt 0:02:15]} O-O {[%emt 0:01:44]} 11. h3 {[%emt 0:02:21]} Ne8 {[%emt 0:05:21]} 12. Nd5 {[%emt 0:06:11]} Ne7 {[%emt 0:07:37]} 13. Nxe7+ {[%emt 0:05:57]} Qxe7 {[%emt 0:00:06]} 14. Be3 {[%emt 0:00:58]} f5 {[%emt 0:04:27]} 15. Qd2 {[%emt 0:04:05]} Nf6 {[%emt 0:05:32]} 16. Bg5 {[%emt 0:01:41]} Qc7 {[%emt 0:01:34]} 17. Bxf6 {[%emt 0:05:22]} Bxf6 {[%emt 0:00:44]} 18. h4 {[%emt 0:03:09]} f4 {[%emt 0:15:07]} 19. Nb4 {[%emt 0:02:19]} Be6 {[%emt 0:00:22]} 20. Rc1 {[%emt 0:02:48]} Rac8 {[%emt 0:00:54]} 21. Ke2 {[%emt 0:02:36]} Qe7 {[%emt 0:01:21]} 22. f3 {[%emt 0:04:09]} Bxh4 {[%emt 0:00:11]} 23. Kd1 {[%emt 0:01:50]} Bg5 {[%emt 0:00:49]} 24. Qe2 {[%emt 0:01:09]} Qd7 {[%emt 0:00:25]} 25. b3 {[%emt 0:00:37]} Bd8 {[%emt 0:00:01]} 26. Kc2 {[%emt 0:01:05]} Ba5 {[%emt 0:00:13]} 27. Nd5 {[%emt 0:00:03]} Bxd5 {[%emt 0:00:23]} 28. exd5 {[%emt 0:00:01]} Bb6 {[%emt 0:00:01]} 29. Rh6 {[%emt 0:00:22]} Rf6 {[%emt 0:00:24]} 30. Rch1 {[%emt 0:00:03]} Rc7 {[%emt 0:00:03]} 31. Qe1 {[%emt 0:00:13]} Qg7 {[%emt 0:00:22]} 32. Qh4 {[%emt 0:00:19]} Rcf7 {[%emt 0:00:06]} 33. Qg4 {[%emt 0:00:02]} Rf8 {[%emt 0:00:16]} 34. Qh4 {[%emt 0:00:47]} R8f7 {[%emt 0:00:03]} 35. Qh3 {[%emt 0:00:10]} Bc5 {[%emt 0:00:13]} 36. Qc8+ {[%emt 0:01:03]} Rf8 {[%emt 0:00:01]} 37. Qh3 {[%emt 0:00:14]} R8f7 {[%emt 0:00:01]} 38. Qc8+ {[%emt 0:00:22]} Rf8 {[%emt 0:00:02]} 39. Qh3 {[%emt 0:00:06]} R8f7 {[%emt 0:00:02]} 1/2-1/2